Workbook

Sheet НефинФ1_ru
B1: Приложение 2
B2: к приказу Министра финансов
B3: Республики Казахстан
B4: от 20 августа 2010 года № 422
B6: Форма 1
B7: Наименование организации: ТОО "Жаикмунай"
B9: Организационно-правовая форма: Товарищество с ограниченной ответственностью
B10: Тип отчета: Не консолидированный
B11: Среднегодовая численность работников: 965 чел.
B12: Субъект предпринимательства: Средний
B13: Юридический адрес (организации): | C13: Казахстан, 090000, Западно-Казахстанская область, Уральск г.а., проспект Евразия 59/2, тел: 87112986600, факс: 8711986601
B15: Бухгалтерский баланс
B16: по состоянию на 31.03.2014
F18: тыс. тенге
B37: Наименование статьи | D37: Код строки | E37: На конец отчетного периода | F37: На начало отчетного периода
B39: Активы
B40: I. Краткосрочные активы:
B41: Денежные средства и их эквиваленты | D41: 010 | E41: 35571771 | F41: 22261251
B42: Финансовые активы, имеющиеся в наличии для продажи | D42: 011 | E42: - | F42: -
B43: Производные финансовые инструменты | D43: 012 | E43: - | F43: -
B44: Финансовые активы, учитываемые по справедливой стоимости через прибыли и убытки | D44: 013 | E44: - | F44: -
B45: Финансовые активы, удерживаемые до погашения | D45: 014 | E45: - | F45: -
B46: Прочие краткосрочные финансовые активы | D46: 015 | E46: - | F46: 3840250
B47: Краткосрочная торговая и прочая дебиторская задолженность | D47: 016 | E47: 19751659 | F47: 10388631
B48: Текущий подоходный налог | D48: 017 | E48: =SUMIF('[1]BS-PL'!$AF$26:$AF$114,C48,'[1]BS-PL'!$AE$26:$AE$114) -> 0 | F48: -
B49: Запасы | D49: 018 | E49: 4165889 | F49: 3392560
B50: Прочие краткосрочные активы | D50: 019 | E50: 6477414 | F50: 5332014
B51: Итого краткосрочных активов (сумма строк с 010 по 019) | D51: 100 | E51: =SUM(E41:E50) -> 65966733 | F51: =SUM(F41:F50) -> 45214706
B52: Активы (или выбывающие группы), предназначенные для продажи | D52: 101 | E52: =SUMIF('[1]BS-PL'!$AF$26:$AF$114,C52,'[1]BS-PL'!$AE$26:$AE$114) -> 0 | F52: -
B53: II. Долгосрочные активы
B54: Финансовые активы, имеющиеся в наличии для продажи | D54: 110 | E54: =SUMIF('[1]BS-PL'!$AF$26:$AF$114,C54,'[1]BS-PL'!$AE$26:$AE$114) -> 0 | F54: -
B55: Производные финансовые инструменты | D55: 111 | E55: =SUMIF('[1]BS-PL'!$AF$26:$AF$114,C55,'[1]BS-PL'!$AE$26:$AE$114) -> 0 | F55: -
B56: Финансовые активы, учитываемые по справедливой стоимости через прибыли и убытки | D56: 112 | E56: =SUMIF('[1]BS-PL'!$AF$26:$AF$114,C56,'[1]BS-PL'!$AE$26:$AE$114) -> 0 | F56: -
B57: Финансовые активы, удерживаемые до погашения | D57: 113 | E57: =SUMIF('[1]BS-PL'!$AF$26:$AF$114,C57,'[1]BS-PL'!$AE$26:$AE$114) -> 0 | F57: -
B58: Прочие долгосрочные финансовые активы | D58: 114 | E58: 5344610 | F58: 8334996
B59: Долгосрочная торговая и прочая дебиторская задолженность | D59: 115 | E59: 38342 | F59: 17918
B60: Инвестиции, учитываемые методом долевого участия | D60: 116 | E60: =SUMIF('[1]BS-PL'!$AF$26:$AF$114,C60,'[1]BS-PL'!$AE$26:$AE$114) -> 0 | F60: -
B61: Инвестиционное имущество | D61: 117 | E61: =SUMIF('[1]BS-PL'!$AF$26:$AF$114,C61,'[1]BS-PL'!$AE$26:$AE$114) -> 0 | F61: -
B62: Основные средства | D62: 118 | E62: 200799478 | F62: 173260373
B63: Биологические активы | D63: 119 | E63: 1073 | F63: 905
B64: Разведочные и оценочные активы | D64: 120 | E64: 3823127 | F64: 3138836
B65: Нематериальные активы | D65: 121 | E65: 126094 | F65: 103439
B66: Отложенные налоговые активы | D66: 122 | E66: =SUMIF('[1]BS-PL'!$AF$26:$AF$114,C66,'[1]BS-PL'!$AE$26:$AE$114) -> 0 | F66: -
B67: Прочие долгосрочные активы | D67: 123 | E67: 46862858 | F67: 32716997
B68: Итого долгосрочных активов (сумма строк с 110 по 123) | D68: 200 | E68: =SUM(E54:E67) -> 256995582 | F68: =SUM(F54:F67) -> 217573464
B69: Баланс (строка 100 +строка 101+ строка 200) | E69: =E51+E52+E68 -> 322962315 | F69: =F68+F51 -> 262788170
B70: Обязательство и капитал
B71: III. Краткосрочные обязательства
B72: Займы | D72: 210 | E72: 3628867 | F72: 4942991
B73: Производные финансовые инструменты | D73: 211 | E73: - | F73: -
B74: Прочие краткосрочные финансовые обязательства | D74: 212 | E74: 16988139 | F74: 25683
B75: Краткосрочная торговая и прочая кредиторская задолженность | D75: 213 | E75: 12709980 | F75: 9693758
B76: Краткосрочные резервы | D76: 214 | E76: 2039004 | F76: 1860594
B77: Текущие налоговые обязательства по подоходному налогу | D77: 215 | E77: 4774 | F77: 27190
B78: Вознаграждения работникам | D78: 216 | E78: 326992 | F78: 210918
B79: Прочие краткосрочные обязательства | D79: 217 | E79: =54347-1 -> 54346 | F79: 819776
B80: Итого краткосрочных обязательств (сумма строк с 210 по 217) | D80: 300 | E80: =SUM(E72:E79) -> 35752102 | F80: =SUM(F72:F79) -> 17580910
B81: Обязательства выбывающих групп, предназначенных для продажи | D81: 301 | E81: - | F81: -
B82: IV. Долгосрочные обязательства
B83: Займы | D83: 310 | E83: 134869918 | F83: 127627456
B84: Производные финансовые инструменты | D84: 311 | E84: - | F84: -
B85: Прочие долгосрочные финансовые обязательства | D85: 312 | E85: - | F85: -
B86: Долгосрочная торговая и прочая кредиторская задолженность | D86: 313 | E86: - | F86: -
B87: Долгосрочные резервы | D87: 314 | E87: 3665178 | F87: 3115609
B88: Отложенные налоговые обязательства | D88: 315 | E88: 33769805 | F88: 23432376
B89: Прочие долгосрочные обязательства | D89: 316 | E89: - | F89: -
B90: Итого долгосрочных обязательств (сумма строк с 310 по 316) | D90: 400 | E90: =SUM(E83:E89) -> 172304901 | F90: =SUM(F83:F89) -> 154175441
B91: V. Капитал
B92: Уставный (акционерный) капитал | D92: 410 | E92: 600 | F92: 600
B93: Эмиссионный доход | D93: 411 | E93: - | F93: -
B94: Выкупленные собственные долевые инструменты | D94: 412 | E94: - | F94: -
B95: Резервы | D95: 413 | E95: 27773092 | F95: 10468454
B96: Нераспределенная прибыль (непокрытый убыток) | D96: 414 | E96: 87131620 | F96: 80562765
B97: Итого капитал, относимый на собственников материнской организации (сумма строк с 410 по 414) | D97: 420 | E97: =SUM(E92:E96) -> 114905312 | F97: =SUM(F92:F96) -> 91031819
B98: Доля неконтролирующих собственников | D98: 421 | E98: - | F98: -
B99: Всего капитал (строка 420 +/- строка 421) | D99: 500 | E99: =E97 -> 114905312 | F99: =F97 -> 91031819
B100: Баланс (строка 300+строка 301+строка 400 + строка 500) | E100: =E99+E80+E90 -> 322962315 | F100: =F99+F80+F90 -> 262788170
B103: Руководитель: Вендель Херманн Хайнц Томас
B104: (фамилия, имя, отчество) | E104: (подпись)
B105: Главный бухгалтер: Шошинова Ольга Борисовна
B106: (фамилия, имя, отчество) | E106: (подпись)
B107: Место печати
E118: =E100-E69 -> 0 | F118: =F100-F69 -> 0

Sheet НефинФ2_ru
E1: Приложение 3
E2: к приказу Министра финансов
E3: Республики Казахстан
E4: от 20 августа 2010 года №422
B6: Наименование организации | C6: ТОО "Жаикмунай"
B7: Сведения о реорганизации | C7: Не применимо
B8: Вид деятельности организации | C8: Добыча сырой нефти и попутного газа
B9: Организационно-правовая форма | C9: ='[2]BS 422'!C8 -> Товарищестово с ограниченной ответсвенностью
B10: Форма отчетности: | C10: консолидированная/неконсолидированная
B11: Среднегодовая численность работников | C11: ='[2]BS 422'!C10 -> 965 | D11: чел.
B12: Субъект предпринимательства | C12: малый / средний/ крупный
B13: Юридический адрес (организации) | C13: Казахстан, 090000, Западно-Казахстанская область,
C14: Уральск г.а., Проспект Евразия 59/2 ,
C15: тел: 8(7112)986610, факс: 8 (7112)986601,
B17: ОТЧЕТ О ПРИБЫЛЯХ И УБЫТКАХ
B18: ='[2]BS 422'!B17 -> по состоянию на "31 " марта 2014 года
B20: Наименование показателей | C20: Код строки | D20: За отчетный период | E20: За предыдущий период
B22: Выручка | C22: 010 | D22: 38629562 | E22: 34429783
B23: Себестоимость реализованных товаров и услуг | C23: 011 | D23: 9414242 | E23: 10400400
B24: Валовая прибыль (строка 010 – строка 011) | C24: 012 | D24: =D22-D23 -> 29215320 | E24: =E22-E23 -> 24029383
B25: Расходы по реализации | C25: 013 | D25: 6101253 | E25: 4613495
B26: Административные расходы | C26: 014 | D26: 476555 | E26: 1555228
B27: Прочие расходы | C27: 015 | D27: 3001823 | E27: 177387
B28: Прочие доходы | C28: 016 | D28: 2713743 | E28: 225353
B29: Итого операционная прибыль (убыток) (+/- строки с 012 по 016) | C29: 020 | D29: =D24-D25-D26-D27+D28 -> 22349432 | E29: =E24-E25-E26-E27+E28 -> 17908626
B30: Доходы по финансированию | C30: 021 | D30: 77416 | E30: 11155
B31: Расходы по финансированию | C31: 022 | D31: 3385501 | E31: 2094285
B32: Доля организации в прибыли (убытке) ассоциированных организаций и совместной деятельности, учитываемых по методу долевого участия | C32: 023 | D32: - | E32: -
B33: Прочие неоперационные доходы | C33: 024 | D33: - | E33: -
B34: Прочие неоперационные расходы | C34: 025 | D34: - | E34: -
B35: Прибыль (убыток) до налогообложения (+/- строки с 020 по 025) | C35: 100 | D35: =D29+D30-D31 -> 19041347 | E35: =E29+E30-E31 -> 15825496
B36: Расходы по подоходному налогу | C36: 101 | D36: 12472492 | E36: 6447046
B37: Прибыль (убыток) после налогообложения от продолжающейся деятельности (строка 100 – строка 101) | C37: 200 | D37: =D35-D36 -> 6568855 | E37: =E35-E36 -> 9378450
B38: Прибыль (убыток) после налогообложения от прекращенной деятельности | C38: 201
B39: Прибыль за год (строка 200 + строка 201) относимая на: | C39: 300 | D39: =D37 -> 6568855 | E39: =E37 -> 9378450
B40: собственников материнской организации | D40: =D39 -> 6568855 | E40: =E39 -> 9378450
B41: долю неконтролирующих собственников
B42: Прочая совокупная прибыль, всего (сумма строк с 410 по 420): | C42: 400 | D42: =SUM(D44:D54) -> 17304638 | E42: =SUM(E44:E54) -> 48867
B43: в том числе:
B44: Переоценка основных средств | C44: 410
B45: Переоценка финансовых активов, имеющихся в наличии для продажи | C45: 411
B46: Доля в прочей совокупной прибыли (убытке) ассоциированных организаций и совместной деятельности, учитываемых по методу долевого участия | C46: 412
B47: Актуарные прибыли (убытки) по пенсионным обязательствам | C47: 413
B48: Эффект изменения в ставке подоходного налога на отсроченный налог дочерних организаций | C48: 414
B49: Хеджирование денежных потоков | C49: 415
B50: Курсовая разница по инвестициям в зарубежные организации | C50: 416
B51: Хеджирование чистых инвестиций в зарубежные операции | C51: 417
B52: Прочие компоненты прочей совокупной прибыли | C52: 418 | D52: 17304638 | E52: 48867
B53: Корректировка при реклассификации в составе прибыли (убытка) | C53: 419
B54: Налоговый эффект компонентов прочей совокупной прибыли | C54: 420
B55: Общая совокупная прибыль (строка 300 + строка 400) | C55: 500 | D55: =D39+D42 -> 23873493 | E55: =E39+E42 -> 9427317
B56: Общая совокупная прибыль относимая на:
B57: собственников материнской организации | D57: =D55 -> 23873493 | E57: =E55 -> 9427317
B58: доля неконтролирующих собственников
B59: Прибыль на акцию: | C59: 600
B60: в том числе:
B61: Базовая прибыль на акцию:
B62: от продолжающейся деятельности
B63: от прекращенной деятельности
B64: Разводненная прибыль на акцию:
B65: от продолжающейся деятельности
B66: от прекращенной деятельности
B69: Руководитель: Вендель Херманн Хайнц Томас
B70: (фамилия, имя, отчество) | D70: (подпись)
B71: Главный бухгалтер: Шошинова Ольга Борисовна
B72: (фамилия, имя, отчество) | D72: (подпись)
B73: Место печати

Sheet Лист1
